[Event "Live Chess"]
[Site "Chess.com"]
[Date "2023.05.21"]
[Round "-"]
[White "BillythekidFellowes"]
[Black "domrobson"]
[Result "1-0"]
[WhiteElo "2124"]
[BlackElo "1791"]
[TimeControl "300"]
[EndTime "8:23:36 PDT"]
[Termination "BillythekidFellowes won by resignation"]

1. e4 {[%clk 0:04:59.4]} 1... e5 {[%clk 0:04:58.7]} 2. Nf3 {[%clk 0:04:59]} 2...
Nc6 {[%clk 0:04:57.3]} 3. Bc4 {[%clk 0:04:58]} 3... Nf6 {[%clk 0:04:56.4]} 4. d3
{[%clk 0:04:56.5]} 4... Bc5 {[%clk 0:04:54.4]} 5. Bg5 {[%clk 0:04:54.2]} 5... a6
{[%clk 0:04:50.1]} 6. Nc3 {[%clk 0:04:53.5]} 6... h6 {[%clk 0:04:47.8]} 7. Bh4
{[%clk 0:04:51.2]} 7... b5 {[%clk 0:04:44.1]} 8. Bb3 {[%clk 0:04:49.6]} 8... g5
{[%clk 0:04:39]} 9. Nxg5 {[%clk 0:04:46.2]} 9... hxg5 {[%clk 0:04:37.6]} 10.
Bxg5 {[%clk 0:04:46.1]} 10... Rg8 {[%clk 0:04:36.4]} 11. h4 {[%clk 0:04:43.8]}
11... Rg6 {[%clk 0:04:32.4]} 12. Nd5 {[%clk 0:04:39.6]} 12... Be7 {[%clk
0:04:30.9]} 13. Nxe7 {[%clk 0:04:37.6]} 13... Nxe7 {[%clk 0:04:26.8]} 14. Qf3
{[%clk 0:04:36.3]} 14... Neg8 {[%clk 0:04:19.3]} 15. O-O-O {[%clk 0:04:23]}
15... d6 {[%clk 0:04:16.2]} 16. Rde1 {[%clk 0:04:08.7]} 16... Be6 {[%clk
0:04:02.7]} 17. Bxe6 {[%clk 0:03:56.7]} 17... fxe6 {[%clk 0:04:01]} 18. Qg3
{[%clk 0:03:53.1]} 18... Qe7 {[%clk 0:03:57.1]} 19. h5 {[%clk 0:03:51.6]} 19...
Nxh5 {[%clk 0:03:52.5]} 20. Rxh5 {[%clk 0:03:50.1]} 1-0

[Event "Live Chess"]
[Site "Chess.com"]
[Date "2023.05.21"]
[Round "-"]
[White "mattihelenius2"]
[Black "robotking06"]
[Result "0-1"]
[WhiteElo "483"]
[BlackElo "327"]
[TimeControl "300"]
[EndTime "8:23:49 PDT"]
[Termination "robotking06 won by checkmate"]

1. d4 {[%clk 0:04:54.3]} 1... d5 {[%clk 0:04:58.5]} 2. Nf3 {[%clk 0:04:44]} 2...
Nc6 {[%clk 0:04:56.4]} 3. b3 {[%clk 0:04:43.2]} 3... Qd6 {[%clk 0:04:43.9]} 4.
c4 {[%clk 0:04:41.1]} 4... dxc4 {[%clk 0:04:41.8]} 5. bxc4 {[%clk 0:04:39.9]}
5... e5 {[%clk 0:04:31.7]} 6. e3 {[%clk 0:04:33.4]} 6... exd4 {[%clk 0:04:30.2]}
7. exd4 {[%clk 0:04:32]} 7... Qe6+ {[%clk 0:04:23.6]} 8. Ne5 {[%clk 0:04:22.8]}
8... Nxe5 {[%clk 0:04:21.5]} 9. dxe5 {[%clk 0:04:21.8]} 9... Qxe5+ {[%clk
0:04:18.9]} 10. Be3 {[%clk 0:04:19.9]} 10... Qxa1 {[%clk 0:04:17.5]} 11. Nc3
{[%clk 0:04:16.4]} 11... Qxd1+ {[%clk 0:04:11.5]} 12. Nxd1 {[%clk 0:04:16.3]}
12... Bg4 {[%clk 0:04:09.3]} 13. f3 {[%clk 0:04:14.7]} 13... Bh5 {[%clk
0:04:06.4]} 14. c5 {[%clk 0:04:05.2]} 14... O-O-O {[%clk 0:04:03.8]} 15. Bc4
{[%clk 0:04:02.3]} 15... b6 {[%clk 0:03:56.4]} 16. c6 {[%clk 0:03:58.6]} 16...
Bb4+ {[%clk 0:03:52.6]} 17. Bd2 {[%clk 0:03:54.9]} 17... Bxd2+ {[%clk
0:03:51.3]} 18. Ke2 {[%clk 0:03:52.1]} 18... Bg5 {[%clk 0:03:43.4]} 19. Ne3
{[%clk 0:03:42.3]} 19... Bxe3 {[%clk 0:03:38.6]} 20. Kxe3 {[%clk 0:03:41.5]}
20... Nf6 {[%clk 0:03:37.3]} 21. Ba6+ {[%clk 0:03:33.8]} 21... Kb8 {[%clk
0:03:35]} 22. Rc1 {[%clk 0:03:19.8]} 22... Rhe8+ {[%clk 0:03:32.9]} 23. Kf2
{[%clk 0:03:17.8]} 23... Rd2+ {[%clk 0:03:20.3]} 24. Kg3 {[%clk 0:03:13.6]}
24... Rxa2 {[%clk 0:03:13.4]} 25. Bb5 {[%clk 0:03:11.1]} 25... Rd2 {[%clk
0:03:06.4]} 26. Kf4 {[%clk 0:03:06.8]} 26... Rxg2 {[%clk 0:02:59.6]} 27. Bf1
{[%clk 0:03:01.2]} 27... Rxh2 {[%clk 0:02:57.4]} 28. Kg3 {[%clk 0:03:00]} 28...
Rd2 {[%clk 0:02:54.4]} 29. Kf4 {[%clk 0:02:55]} 29... Nd5+ {[%clk 0:02:51]} 30.
Kf5 {[%clk 0:02:53]} 30... Rf2 {[%clk 0:02:48.3]} 31. Bc4 {[%clk 0:02:48.9]}
31... Ne3+ {[%clk 0:02:32.5]} 32. Kg5 {[%clk 0:02:42.6]} 32... Nxc4 {[%clk
0:02:29.2]} 33. Kxh5 {[%clk 0:02:41.9]} 33... Ne3 {[%clk 0:02:27.1]} 34. Rc3
{[%clk 0:02:39.7]} 34... Re5+ {[%clk 0:02:19.1]} 35. Kh4 {[%clk 0:02:38]} 35...
Nf5+ {[%clk 0:02:15.6]} 36. Kg4 {[%clk 0:02:36.3]} 36... Rg2+ {[%clk 0:02:08.3]}
37. Kf4 {[%clk 0:02:34.4]} 37... Rge2 {[%clk 0:02:03.4]} 38. Kg5 {[%clk
0:02:17.2]} 38... R2e3 {[%clk 0:01:56.6]} 39. Kf4 {[%clk 0:02:15.6]} 39... Rxc3
{[%clk 0:01:54.6]} 40. Kxe5 {[%clk 0:02:14.9]} 40... Ng3 {[%clk 0:01:52.8]} 41.
f4 {[%clk 0:02:13]} 41... Ne2 {[%clk 0:01:44.3]} 42. Ke4 {[%clk 0:02:09.7]}
42... Rxc6 {[%clk 0:01:42.8]} 43. Ke3 {[%clk 0:02:08.4]} 43... Nc3 {[%clk
0:01:41]} 44. Kf3 {[%clk 0:02:05.3]} 44... a5 {[%clk 0:01:40.3]} 45. Ke3 {[%clk
0:02:03.6]} 45... Nb1 {[%clk 0:01:39.1]} 46. Kd3 {[%clk 0:02:02.8]} 46... a4
{[%clk 0:01:38.6]} 47. Kd4 {[%clk 0:02:01.5]} 47... a3 {[%clk 0:01:38.3]} 48.
Kd5 {[%clk 0:02:00.9]} 48... Rc1 {[%clk 0:01:36.9]} 49. Kd4 {[%clk 0:01:59.9]}
49... a2 {[%clk 0:01:36.4]} 50. Kd3 {[%clk 0:01:59.2]} 50... a1=Q {[%clk
0:01:35]} 51. Ke4 {[%clk 0:01:57.6]} 51... Qc3 {[%clk 0:01:31.1]} 52. Kf5 {[%clk
0:01:56.3]} 52... Qd3+ {[%clk 0:01:30.1]} 53. Ke5 {[%clk 0:01:55.3]} 53... Re1#
{[%clk 0:01:29.3]} 0-1

[Event "Live Chess"]
[Site "Chess.com"]
[Date "2023.05.21"]
[Round "-"]
[White "davigator"]
[Black "GMHarry-youtube"]
[Result "1-0"]
[WhiteElo "2307"]
[BlackElo "2004"]
[TimeControl "300"]
[EndTime "8:23:50 PDT"]
[Termination "davigator won by checkmate"]

1. e4 {[%clk 0:04:58.6]} 1... c5 {[%clk 0:04:58.8]} 2. Nf3 {[%clk 0:04:54.2]}
2... d6 {[%clk 0:04:56.4]} 3. d4 {[%clk 0:04:53.5]} 3... cxd4 {[%clk 0:04:54.4]}
4. Nxd4 {[%clk 0:04:52.6]} 4... Nf6 {[%clk 0:04:48.7]} 5. Nc3 {[%clk 0:04:51.5]}
5... g6 {[%clk 0:04:46.9]} 6. Be3 {[%clk 0:04:40.1]} 6... Bg7 {[%clk 0:04:45.5]}
7. f3 {[%clk 0:04:25.1]} 7... O-O {[%clk 0:04:44.8]} 8. Qd2 {[%clk 0:04:21.9]}
8... Nc6 {[%clk 0:04:41.7]} 9. Bc4 {[%clk 0:04:21]} 9... Nxd4 {[%clk 0:04:39]}
10. Bxd4 {[%clk 0:04:19.7]} 10... Be6 {[%clk 0:04:38.8]} 11. Bxe6 {[%clk
0:04:18.8]} 11... fxe6 {[%clk 0:04:38.7]} 12. O-O-O {[%clk 0:04:17.3]} 12... e5
{[%clk 0:04:35.6]} 13. Be3 {[%clk 0:04:15.3]} 13... a6 {[%clk 0:04:34.7]} 14.
Bh6 {[%clk 0:04:13.5]} 14... b5 {[%clk 0:04:32.4]} 15. h4 {[%clk 0:04:11.5]}
15... Qa5 {[%clk 0:04:30.6]} 16. Kb1 {[%clk 0:04:10]} 16... b4 {[%clk
0:04:21.9]} 17. Ne2 {[%clk 0:04:07]} 17... Qb5 {[%clk 0:04:20.3]} 18. h5 {[%clk
0:04:01.4]} 18... Nxh5 {[%clk 0:04:15.9]} 19. Bxg7 {[%clk 0:03:57.6]} 19... Kxg7
{[%clk 0:04:10.2]} 20. g4 {[%clk 0:03:53.3]} 20... Nf4 {[%clk 0:04:02.5]} 21.
Nc1 {[%clk 0:03:47.4]} 21... a5 {[%clk 0:03:57.9]} 22. Rh2 {[%clk 0:03:46.1]}
22... a4 {[%clk 0:03:55]} 23. Rdh1 {[%clk 0:03:44.1]} 23... Rh8 {[%clk
0:03:53.7]} 24. Nd3 {[%clk 0:03:39.5]} 24... Nxd3 {[%clk 0:03:43.7]} 25. cxd3
{[%clk 0:03:36.6]} 25... b3 {[%clk 0:03:30.7]} 26. a3 {[%clk 0:03:34.1]} 26...
Rac8 {[%clk 0:03:28.3]} 27. Qe3 {[%clk 0:03:26.7]} 27... Rc2 {[%clk 0:03:23.2]}
28. Rxc2 {[%clk 0:03:24.2]} 28... bxc2+ {[%clk 0:03:22.4]} 29. Kxc2 {[%clk
0:03:24.1]} 29... Rc8+ {[%clk 0:03:16.5]} 30. Kb1 {[%clk 0:03:22.3]} 30... Rb8
{[%clk 0:03:10.4]} 31. Rh2 {[%clk 0:03:18.5]} 31... Qb3 {[%clk 0:02:57.1]} 32.
Qh6+ {[%clk 0:03:15.7]} 32... Kf6 {[%clk 0:02:54.6]} 33. Rd2 {[%clk 0:03:12.4]}
33... Qxa3 {[%clk 0:02:42.4]} 34. g5+ {[%clk 0:03:11]} 34... Kf7 {[%clk
0:02:34.3]} 35. Qxh7+ {[%clk 0:03:09.9]} 35... Ke6 {[%clk 0:02:33.6]} 36. Qh3+
{[%clk 0:03:07.3]} 36... Kf7 {[%clk 0:02:31.4]} 37. Qh7+ {[%clk 0:03:05.3]}
37... Ke6 {[%clk 0:02:30.6]} 38. Qxg6+ {[%clk 0:03:04.9]} 38... Kd7 {[%clk
0:02:29.9]} 39. Qf5+ {[%clk 0:03:02]} 39... Ke8 {[%clk 0:02:24.2]} 40. Qg6+
{[%clk 0:02:50.1]} 40... Kd7 {[%clk 0:02:18.7]} 41. Qf7 {[%clk 0:02:32.4]} 41...
Qb3 {[%clk 0:02:08.7]} 42. Qxb3 {[%clk 0:02:10.4]} 42... axb3 {[%clk 0:02:02.8]}
43. Rg2 {[%clk 0:02:08.6]} 43... Rh8 {[%clk 0:01:58.1]} 44. Kc1 {[%clk
0:02:06.9]} 44... Ke6 {[%clk 0:01:53.4]} 45. Kd2 {[%clk 0:02:05.3]} 45... Rc8
{[%clk 0:01:51.9]} 46. Ke3 {[%clk 0:02:03]} 46... Kf7 {[%clk 0:01:45.4]} 47. f4
{[%clk 0:01:55.9]} 47... exf4+ {[%clk 0:01:42.2]} 48. Kxf4 {[%clk 0:01:54.4]}
48... Rc2 {[%clk 0:01:41.8]} 49. Kf3 {[%clk 0:01:37.5]} 49... Kg6 {[%clk
0:01:34.8]} 50. d4 {[%clk 0:01:35]} 50... Rxg2 {[%clk 0:01:24]} 51. Kxg2 {[%clk
0:01:33.7]} 51... Kxg5 {[%clk 0:01:23.5]} 52. Kf3 {[%clk 0:01:31.7]} 52... e6
{[%clk 0:01:14.8]} 53. Kg3 {[%clk 0:01:29.4]} 53... d5 {[%clk 0:01:05.3]} 54.
Kf3 {[%clk 0:01:26.2]} 54... Kg6 {[%clk 0:00:41.4]} 55. exd5 {[%clk 0:01:05.5]}
55... exd5 {[%clk 0:00:41.3]} 56. Kg4 {[%clk 0:01:04.3]} 56... Kf6 {[%clk
0:00:34.6]} 57. Kf4 {[%clk 0:01:03.6]} 57... Ke6 {[%clk 0:00:34]} 58. Kg5 {[%clk
0:01:02.8]} 58... Kd6 {[%clk 0:00:33.4]} 59. Kf5 {[%clk 0:01:02.2]} 59... Kc6
{[%clk 0:00:33]} 60. Ke5 {[%clk 0:01:01.2]} 60... Kb5 {[%clk 0:00:32.6]} 61.
Kxd5 {[%clk 0:01:00.4]} 61... Kb4 {[%clk 0:00:32.3]} 62. Ke4 {[%clk 0:00:56.3]}
62... Kc4 {[%clk 0:00:29.9]} 63. d5 {[%clk 0:00:55.6]} 63... Kc5 {[%clk
0:00:29.2]} 64. Ke5 {[%clk 0:00:55.1]} 64... Kc4 {[%clk 0:00:28]} 65. d6 {[%clk
0:00:53.7]} 65... Kd3 {[%clk 0:00:27.6]} 66. d7 {[%clk 0:00:52.4]} 66... Kc2
{[%clk 0:00:27.5]} 67. d8=Q {[%clk 0:00:51.4]} 67... Kxb2 {[%clk 0:00:27.4]} 68.
Kd4 {[%clk 0:00:47.7]} 68... Kc2 {[%clk 0:00:18.4]} 69. Qc7+ {[%clk 0:00:46.7]}
69... Kb2 {[%clk 0:00:14.8]} 70. Kc4 {[%clk 0:00:43.3]} 70... Kc2 {[%clk
0:00:07.2]} 71. Qh2+ {[%clk 0:00:41.8]} 71... Kd1 {[%clk 0:00:04]} 72. Kd3
{[%clk 0:00:40.8]} 72... Kc1 {[%clk 0:00:01.7]} 73. Kc3 {[%clk 0:00:37.8]} 73...
Kd1 {[%clk 0:00:00.2]} 74. Qd2# {[%clk 0:00:36.4]} 1-0

[Event "Live Chess"]
[Site "Chess.com"]
[Date "2023.05.21"]
[Round "-"]
[White "manthanit"]
[Black "JanMur7"]
[Result "0-1"]
[WhiteElo "1103"]
[BlackElo "1964"]
[TimeControl "300"]
[EndTime "8:23:54 PDT"]
[Termination "JanMur7 won by resignation"]

1. e4 {[%clk 0:04:58.8]} 1... e5 {[%clk 0:04:59]} 2. Nf3 {[%clk 0:04:57.5]} 2...
Nc6 {[%clk 0:04:58.3]} 3. Bc4 {[%clk 0:04:57]} 3... Bc5 {[%clk 0:04:55]} 4. h3
{[%clk 0:04:55.3]} 4... Nf6 {[%clk 0:04:53.9]} 5. d3 {[%clk 0:04:54.8]} 5... d6
{[%clk 0:04:52.8]} 6. O-O {[%clk 0:04:53.7]} 6... a6 {[%clk 0:04:51.2]} 7. a4
{[%clk 0:04:52.3]} 7... h6 {[%clk 0:04:48.1]} 8. Nc3 {[%clk 0:04:50]} 8... g5
{[%clk 0:04:47.2]} 9. Nd5 {[%clk 0:04:48.2]} 9... g4 {[%clk 0:04:43.5]} 10. hxg4
{[%clk 0:04:43.5]} 10... Bxg4 {[%clk 0:04:43.4]} 11. Nh2 {[%clk 0:04:42.1]}
11... Bxd1 {[%clk 0:04:41.8]} 12. Re1 {[%clk 0:04:40]} 12... Bxc2 {[%clk
0:04:37.2]} 0-1

[Event "Live Chess"]
[Site "Chess.com"]
[Date "2023.05.21"]
[Round "-"]
[White "JohanKjeldahl"]
[Black "garyjc"]
[Result "1-0"]
[WhiteElo "1886"]
[BlackElo "1080"]
[TimeControl "300"]
[EndTime "8:23:56 PDT"]
[Termination "JohanKjeldahl won by resignation"]

1. e4 {[%clk 0:04:57.4]} 1... c5 {[%clk 0:04:58.1]} 2. Nf3 {[%clk 0:04:56.3]}
2... a6 {[%clk 0:04:57.3]} 3. d4 {[%clk 0:04:54.9]} 3... cxd4 {[%clk 0:04:55.1]}
4. Nxd4 {[%clk 0:04:53.5]} 4... e5 {[%clk 0:04:46.5]} 5. Nf3 {[%clk 0:04:50.7]}
5... Bd6 {[%clk 0:04:31.6]} 6. Qxd6 {[%clk 0:04:46.7]} 6... Nf6 {[%clk
0:04:18.4]} 7. Qxe5+ {[%clk 0:04:43.7]} 7... Kf8 {[%clk 0:04:05.5]} 8. Bg5
{[%clk 0:04:37.3]} 8... Nc6 {[%clk 0:03:59.2]} 9. Qd6+ {[%clk 0:04:34.1]} 9...
Kg8 {[%clk 0:03:54.1]} 10. e5 {[%clk 0:04:31.3]} 10... Qa5+ {[%clk 0:03:50.8]}
11. Bd2 {[%clk 0:04:27.2]} 11... Qb6 {[%clk 0:03:37]} 12. exf6 {[%clk
0:04:24.3]} 12... Qxb2 {[%clk 0:03:34.1]} 13. fxg7 {[%clk 0:04:13.4]} 13... Kxg7
{[%clk 0:03:29.4]} 14. Bc3+ {[%clk 0:04:11.8]} 14... Kg8 {[%clk 0:03:28.1]} 1-0

[Event "Live Chess"]
[Site "Chess.com"]
[Date "2023.05.21"]
[Round "-"]
[White "AttackingSnowLeopard"]
[Black "PaulyD81"]
[Result "1-0"]
[WhiteElo "2165"]
[BlackElo "1145"]
[TimeControl "300"]
[EndTime "8:23:58 PDT"]
[Termination "AttackingSnowLeopard won by resignation"]

1. d4 {[%clk 0:04:58.3]} 1... Nf6 {[%clk 0:04:55.9]} 2. c4 {[%clk 0:04:57.4]}
2... e6 {[%clk 0:04:55.1]} 3. Nf3 {[%clk 0:04:56.3]} 3... Bb4+ {[%clk
0:04:53.9]} 4. Bd2 {[%clk 0:04:55]} 4... Bxd2+ {[%clk 0:04:51.9]} 5. Qxd2 {[%clk
0:04:54.2]} 5... d5 {[%clk 0:04:47.7]} 6. Nc3 {[%clk 0:04:53.2]} 6... c6 {[%clk
0:04:38.2]} 7. e3 {[%clk 0:04:52.2]} 7... Nbd7 {[%clk 0:04:36.9]} 8. Be2 {[%clk
0:04:50.7]} 8... O-O {[%clk 0:04:34.7]} 9. O-O {[%clk 0:04:50.3]} 9... b6 {[%clk
0:04:22.2]} 10. Qc2 {[%clk 0:04:47.1]} 10... c5 {[%clk 0:04:12.3]} 11. cxd5
{[%clk 0:04:44.3]} 11... cxd4 {[%clk 0:04:03.4]} 12. Nxd4 {[%clk 0:04:42.4]}
12... exd5 {[%clk 0:03:58.7]} 13. Nc6 {[%clk 0:04:39.9]} 13... Qe8 {[%clk
0:03:38.3]} 14. b4 {[%clk 0:04:25.3]} 14... Bb7 {[%clk 0:03:36.4]} 15. Nd4
{[%clk 0:04:13]} 15... a5 {[%clk 0:03:31.3]} 16. bxa5 {[%clk 0:04:10.8]} 16...
Rxa5 {[%clk 0:03:22.4]} 17. Ncb5 {[%clk 0:04:09.7]} 17... Ra8 {[%clk 0:03:11.4]}
18. Nc7 {[%clk 0:04:06.8]} 18... Qc8 {[%clk 0:03:08]} 19. Nxa8 {[%clk
0:04:05.7]} 19... Qxc2 {[%clk 0:03:06.8]} 20. Nxc2 {[%clk 0:04:05.6]} 20... Rxa8
{[%clk 0:03:01.7]} 21. Nd4 {[%clk 0:04:04.1]} 21... Ne4 {[%clk 0:02:51.7]} 22.
Bd3 {[%clk 0:03:59.2]} 22... Nd2 {[%clk 0:02:49.1]} 23. Rfd1 {[%clk 0:03:57.7]}
23... Ba6 {[%clk 0:02:26.7]} 24. Bxa6 {[%clk 0:03:52.2]} 24... Rxa6 {[%clk
0:02:24.9]} 25. Rxd2 {[%clk 0:03:51.7]} 1-0

[Event "Live Chess"]
[Site "Chess.com"]
[Date "2023.05.21"]
[Round "-"]
[White "Tiltador"]
[Black "DfNn"]
[Result "0-1"]
[WhiteElo "906"]
[BlackElo "1544"]
[TimeControl "300"]
[EndTime "8:24:00 PDT"]
[Termination "DfNn won by checkmate"]

1. d4 {[%clk 0:04:56.7]} 1... f5 {[%clk 0:04:58.3]} 2. e3 {[%clk 0:04:55.8]}
2... Nf6 {[%clk 0:04:57.6]} 3. c3 {[%clk 0:04:54.9]} 3... e6 {[%clk 0:04:56.9]}
4. Nf3 {[%clk 0:04:52.7]} 4... Be7 {[%clk 0:04:56.2]} 5. Ne5 {[%clk 0:04:51.7]}
5... O-O {[%clk 0:04:54.4]} 6. Bc4 {[%clk 0:04:50.4]} 6... d6 {[%clk 0:04:52.3]}
7. Nf3 {[%clk 0:04:47.2]} 7... Ne4 {[%clk 0:04:51]} 8. O-O {[%clk 0:04:44.7]}
8... Nc6 {[%clk 0:04:50.1]} 9. b3 {[%clk 0:04:39.5]} 9... a6 {[%clk 0:04:48]}
10. Bd3 {[%clk 0:04:38.3]} 10... Ng5 {[%clk 0:04:36.6]} 11. Nxg5 {[%clk
0:04:36.6]} 11... Bxg5 {[%clk 0:04:36.5]} 12. e4 {[%clk 0:04:32]} 12... fxe4
{[%clk 0:04:34.8]} 13. Bxg5 {[%clk 0:04:29.8]} 13... Qxg5 {[%clk 0:04:32]} 14.
Bxe4 {[%clk 0:04:26.5]} 14... e5 {[%clk 0:04:29.6]} 15. Bxc6 {[%clk 0:04:20]}
15... bxc6 {[%clk 0:04:28.2]} 16. dxe5 {[%clk 0:04:16.5]} 16... Bh3 {[%clk
0:04:26.5]} 17. g3 {[%clk 0:04:11.3]} 17... Bxf1 {[%clk 0:04:24.4]} 18. Qxf1
{[%clk 0:04:10.3]} 18... dxe5 {[%clk 0:04:23.5]} 19. Na3 {[%clk 0:04:07.5]}
19... Rf3 {[%clk 0:04:21.5]} 20. c4 {[%clk 0:04:05.1]} 20... Raf8 {[%clk
0:04:19.4]} 21. Nc2 {[%clk 0:04:02.6]} 21... Qd2 {[%clk 0:04:17.7]} 22. Na3
{[%clk 0:03:56.7]} 22... Rxf2 {[%clk 0:04:15.7]} 23. Qd1 {[%clk 0:03:41.8]}
23... Rg2+ {[%clk 0:04:11.1]} 24. Kh1 {[%clk 0:03:37.7]} 24... Rxh2+ {[%clk
0:04:10]} 25. Kg1 {[%clk 0:03:35.8]} 25... Qg2# {[%clk 0:04:09.9]} 0-1

[Event "Live Chess"]
[Site "Chess.com"]
[Date "2023.05.21"]
[Round "-"]
[White "whatnot126"]
[Black "nitrofish07"]
[Result "1-0"]
[WhiteElo "2070"]
[BlackElo "1810"]
[TimeControl "300"]
[EndTime "8:24:04 PDT"]
[Termination "whatnot126 won by resignation"]

1. e4 {[%clk 0:04:59.1]} 1... c5 {[%clk 0:04:59.1]} 2. c3 {[%clk 0:04:58.2]}
2... d5 {[%clk 0:04:58]} 3. exd5 {[%clk 0:04:57.3]} 3... Qxd5 {[%clk 0:04:57.9]}
4. d4 {[%clk 0:04:56.9]} 4... g6 {[%clk 0:04:56.9]} 5. Nf3 {[%clk 0:04:50.6]}
5... Bg4 {[%clk 0:04:43.5]} 6. Nbd2 {[%clk 0:04:49.6]} 6... Bg7 {[%clk
0:04:40.4]} 7. Bc4 {[%clk 0:04:48.7]} 7... Qd8 {[%clk 0:04:34.8]} 8. Bxf7+
{[%clk 0:04:38]} 8... Kf8 {[%clk 0:04:22.5]} 9. Bc4 {[%clk 0:04:35.1]} 9... Nf6
{[%clk 0:04:20.1]} 10. O-O {[%clk 0:04:30.4]} 10... cxd4 {[%clk 0:04:17.6]} 11.
cxd4 {[%clk 0:04:27.6]} 11... Nc6 {[%clk 0:04:17.5]} 12. h3 {[%clk 0:04:12.3]}
12... Bh5 {[%clk 0:04:03.3]} 13. g4 {[%clk 0:04:07]} 13... Nxg4 {[%clk
0:04:02.9]} 14. hxg4 {[%clk 0:04:06.1]} 14... Bxg4 {[%clk 0:04:02.8]} 15. Qe2
{[%clk 0:03:38.8]} 15... Nxd4 {[%clk 0:03:58.4]} 16. Qe4 {[%clk 0:03:35.6]}
16... Nxf3+ {[%clk 0:03:52]} 17. Nxf3 {[%clk 0:03:35.5]} 17... Bxf3 {[%clk
0:03:41.9]} 18. Qxf3+ {[%clk 0:03:33.8]} 18... Bf6 {[%clk 0:03:41.8]} 19. Bh6+
{[%clk 0:03:31.9]} 19... Ke8 {[%clk 0:03:39.7]} 20. Bb5+ {[%clk 0:03:30.9]}
20... Kf7 {[%clk 0:03:38.4]} 21. Bc4+ {[%clk 0:03:29.7]} 21... Ke8 {[%clk
0:03:36.4]} 22. Qxb7 {[%clk 0:03:25.9]} 22... Rb8 {[%clk 0:03:32.1]} 23. Qc6+
{[%clk 0:03:20.8]} 23... Qd7 {[%clk 0:03:29.9]} 24. Bf7+ {[%clk 0:03:19.7]}
24... Kd8 {[%clk 0:03:26.9]} 25. Qc4 {[%clk 0:03:07.5]} 25... Rxb2 {[%clk
0:03:21]} 26. Be6 {[%clk 0:02:59.9]} 26... Qc7 {[%clk 0:03:13.5]} 27. Rad1+
{[%clk 0:02:58.1]} 27... Ke8 {[%clk 0:03:11.9]} 28. Qxc7 {[%clk 0:02:57.1]} 1-0

[Event "Live Chess"]
[Site "Chess.com"]
[Date "2023.05.21"]
[Round "-"]
[White "youtookmyhorse"]
[Black "Rusty_Bridges"]
[Result "0-1"]
[WhiteElo "770"]
[BlackElo "1523"]
[TimeControl "300"]
[EndTime "8:24:18 PDT"]
[Termination "Rusty_Bridges won by checkmate"]

1. e4 {[%clk 0:04:54.6]} 1... d6 {[%clk 0:04:57.9]} 2. Nc3 {[%clk 0:04:49.1]}
2... Nf6 {[%clk 0:04:56.7]} 3. Nf3 {[%clk 0:04:46.7]} 3... Nbd7 {[%clk
0:04:55.3]} 4. Bc4 {[%clk 0:04:44.5]} 4... h6 {[%clk 0:04:53.3]} 5. O-O {[%clk
0:04:40.7]} 5... e5 {[%clk 0:04:52.5]} 6. Nd5 {[%clk 0:04:36.4]} 6... Be7 {[%clk
0:04:49.3]} 7. Nxf6+ {[%clk 0:04:34.6]} 7... Nxf6 {[%clk 0:04:46.5]} 8. d3
{[%clk 0:04:30.7]} 8... Bg4 {[%clk 0:04:42.9]} 9. Be3 {[%clk 0:04:15.1]} 9... c6
{[%clk 0:04:37.1]} 10. Qe2 {[%clk 0:04:09.9]} 10... b5 {[%clk 0:04:33.6]} 11.
Bb3 {[%clk 0:04:08.4]} 11... a5 {[%clk 0:04:32.5]} 12. a3 {[%clk 0:04:07.5]}
12... a4 {[%clk 0:04:07.6]} 13. Ba2 {[%clk 0:04:06.5]} 13... c5 {[%clk
0:04:02.9]} 14. c4 {[%clk 0:04:00.1]} 14... b4 {[%clk 0:03:56.7]} 15. h3 {[%clk
0:03:53.7]} 15... Bh5 {[%clk 0:03:53.6]} 16. g4 {[%clk 0:03:52.4]} 16... Bg6
{[%clk 0:03:49.5]} 17. Nh4 {[%clk 0:03:41.3]} 17... Bh7 {[%clk 0:03:45.8]} 18.
Qf3 {[%clk 0:03:34.6]} 18... b3 {[%clk 0:03:41.5]} 19. Bb1 {[%clk 0:03:32]}
19... Nh5 {[%clk 0:03:25.2]} 20. Bd2 {[%clk 0:03:16.4]} 20... Bxh4 {[%clk
0:03:18.6]} 21. gxh5 {[%clk 0:03:05.7]} 21... g6 {[%clk 0:02:59.1]} 22. hxg6
{[%clk 0:03:02]} 22... Bxg6 {[%clk 0:02:39.7]} 23. Kh2 {[%clk 0:02:48.3]} 23...
Qd7 {[%clk 0:02:23.1]} 24. Rg1 {[%clk 0:02:22.8]} 24... O-O-O {[%clk 0:02:19.3]}
25. Qg4 {[%clk 0:02:13.4]} 25... Qxg4 {[%clk 0:02:11]} 26. Rxg4 {[%clk 0:02:13]}
26... Be7 {[%clk 0:01:50.5]} 27. h4 {[%clk 0:02:01.3]} 27... Rdg8 {[%clk
0:01:42.9]} 28. f4 {[%clk 0:01:40.9]} 28... Bh5 {[%clk 0:01:35.2]} 29. Rxg8+
{[%clk 0:01:38.8]} 29... Rxg8 {[%clk 0:01:33.6]} 30. fxe5 {[%clk 0:01:37.8]}
30... dxe5 {[%clk 0:01:29.6]} 31. Bxh6 {[%clk 0:01:36.7]} 31... Bxh4 {[%clk
0:01:19.9]} 32. Be3 {[%clk 0:01:30.9]} 32... Be7 {[%clk 0:01:11.2]} 33. d4
{[%clk 0:01:28.9]} 33... exd4 {[%clk 0:01:04.3]} 34. Bf4 {[%clk 0:01:22.7]}
34... Kd7 {[%clk 0:00:46.1]} 35. e5 {[%clk 0:01:21.5]} 35... Kc6 {[%clk
0:00:41.8]} 36. Be4+ {[%clk 0:01:20]} 36... Kd7 {[%clk 0:00:39.9]} 37. Rg1
{[%clk 0:01:16.1]} 37... Rxg1 {[%clk 0:00:37]} 38. Kxg1 {[%clk 0:01:15]} 38...
Be2 {[%clk 0:00:34.3]} 39. Bf5+ {[%clk 0:01:13.1]} 39... Ke8 {[%clk 0:00:31.7]}
40. e6 {[%clk 0:01:12.4]} 40... fxe6 {[%clk 0:00:29.6]} 41. Bxe6 {[%clk
0:01:11.8]} 41... Bf6 {[%clk 0:00:25.8]} 42. Bd6 {[%clk 0:01:04.2]} 42... d3
{[%clk 0:00:24.4]} 43. Bf4 {[%clk 0:00:55.9]} 43... Bxb2 {[%clk 0:00:21.8]} 44.
Bg4 {[%clk 0:00:51.2]} 44... Bxg4 {[%clk 0:00:19.1]} 45. Kf2 {[%clk 0:00:49.8]}
45... Bxa3 {[%clk 0:00:18.1]} 46. Ke1 {[%clk 0:00:46.3]} 46... b2 {[%clk
0:00:16.9]} 47. Kd2 {[%clk 0:00:37.9]} 47... b1=Q {[%clk 0:00:15.2]} 48. Ke3
{[%clk 0:00:36.9]} 48... Bc1+ {[%clk 0:00:12.3]} 49. Ke4 {[%clk 0:00:35.9]}
49... Bxf4 {[%clk 0:00:11.7]} 50. Kxf4 {[%clk 0:00:35.2]} 50... d2 {[%clk
0:00:10.9]} 51. Kxg4 {[%clk 0:00:33.7]} 51... d1=Q+ {[%clk 0:00:09.4]} 52. Kf4
{[%clk 0:00:32.7]} 52... Qbd3 {[%clk 0:00:08.2]} 53. Ke5 {[%clk 0:00:31.8]}
53... Q1e2+ {[%clk 0:00:07.4]} 54. Kf4 {[%clk 0:00:30.9]} 54... Qdf3+ {[%clk
0:00:07.3]} 55. Kg5 {[%clk 0:00:29.2]} 55... Qeg2+ {[%clk 0:00:07.2]} 56. Kh4
{[%clk 0:00:28.5]} 56... Qfh3# {[%clk 0:00:06.8]} 0-1